bitfinex-derivatives/quotes_BTCF0:USTF0_20250213
["timestamp","ask_amount","ask_price","bid_price","bid_amount"]
[1739409152221,0.14,97952.0,97951.0,0.22213549]
[1739409152717,0.001532,97956.0,97955.0,0.2041659]
[1739409152917,0.241532,97956.0,97955.0,0.2041659]
[1739409154323,0.241532,97956.0,97955.0,0.2051659]
[1739409154823,0.241532,97956.0,97955.0,0.2061659]
[1739409155417,0.43986168,97970.0,97955.0,0.002]
[1739409155723,0.06,97970.0,97969.0,0.2041367]
[1739409157017,0.06,97970.0,97969.0,0.2111367]
[1739409158312,0.06,97970.0,97969.0,0.2261367]
[1739409159823,0.06,97970.0,97969.0,0.23657385]
[1739409160922,0.06,97970.0,97969.0,0.2261367]
[1739409161123,1.56,97970.0,97969.0,0.2261367]
[1739409161619,0.06,97970.0,97969.0,0.2261367]
[1739409165828,0.18362391,97971.0,97969.0,0.2261367]
[1739409167521,0.18362391,97971.0,97969.0,0.2111367]
[1739409167728,0.18362391,97971.0,97969.0,0.2261367]
[1739409168230,0.18362391,97971.0,97969.0,0.022]
[1739409168529,0.18362391,97971.0,97970.0,0.2041346]
[1739409168924,0.15812336,97980.0,97979.0,0.2041158]
[1739409169126,0.3608,97983.0,97982.0,0.2041096]
[1739409170933,0.3608,97983.0,97982.0,0.2111096]
[1739409171624,0.3608,97983.0,97982.0,0.2261096]
[1739409178927,0.36084088,97983.0,97982.0,0.2261096]
[1739409179139,0.56494838,97983.0,97982.0,0.022]
[1739409180936,0.36084088,97983.0,97982.0,0.022]
[1739409182738,0.41998794,97983.0,97982.0,0.022]
[1739409189939,0.36084088,97983.0,97982.0,0.022]
[1739409196666,0.36084088,97983.0,97973.0,0.00015309]
[1739409196667,0.2041261,97974.0,97973.0,0.00015309]
[1739409196973,0.15812336,97969.0,97951.0,0.0314]
[1739409197156,0.3608,97959.0,97954.0,0.2041672]
[1739409197357,0.6008,97959.0,97956.0,0.2041627]
[1739409197557,0.6008,97959.0,97957.0,0.2041609]
[1739409199851,0.6008,97959.0,97957.0,0.2051609]
[1739409200056,0.6198,97959.0,97957.0,0.2051609]
[1739409201958,0.259,97959.0,97957.0,0.2051609]
[1739409203364,0.259,97959.0,97957.0,0.001]
[1739409203567,0.06984,97958.0,97957.0,0.001]
[1739409203768,0.28984,97958.0,97957.0,0.001]
[1739409204757,0.29684,97958.0,97957.0,0.002]
[1739409206564,0.30884,97958.0,97957.0,0.002]
[1739409206963,0.08884,97958.0,97957.0,0.002]
[1739409213057,0.019,97958.0,97957.0,0.002]
[1739409213263,0.08872,97958.0,97957.0,0.002]
[1739409215881,0.019,97958.0,97957.0,0.002]
[1739409216173,0.08868,97958.0,97957.0,0.002]
[1739409233882,0.019,97958.0,97957.0,0.002]
[1739409234072,0.0884,97958.0,97957.0,0.002]
[1739409239279,0.0884,97958.0,97957.0,0.2061616]
[1739409239583,0.019,97958.0,97957.0,0.2061616]
[1739409266802,0.012,97958.0,97957.0,0.2051616]
[1739409267008,0.017,97958.0,97957.0,0.2061616]
[1739409267908,0.016,97958.0,97957.0,0.2061616]
[1739409268507,0.015,97958.0,97957.0,0.2061616]
[1739409270303,0.016,97958.0,97957.0,0.2061616]
[1739409271202,0.06565131,97958.0,97957.0,0.2061616]
[1739409275106,0.06565131,97958.0,97957.0,0.002]
[1739409275306,0.17659767,97958.0,97957.0,0.002]
[1739409278426,0.06565131,97958.0,97957.0,0.002]
[1739409280911,0.06565131,97958.0,97957.0,0.2061616]
[1739409282818,0.016,97958.0,97957.0,0.2061616]
[1739409286216,0.06565131,97958.0,97957.0,0.2061616]
[1739409289824,0.31079838,97958.0,97957.0,0.2061616]
[1739409293123,0.17909034,97958.0,97957.0,0.2061616]
[1739409296625,0.06565131,97958.0,97957.0,0.2061616]
[1739409301127,0.06565131,97958.0,97957.0,0.002]
[1739409301322,0.46981081,97958.0,97957.0,0.002]
[1739409301627,0.46981081,97958.0,97933.0,0.29119634]
[1739409301628,0.26565131,97958.0,97933.0,0.29119634]
[1739409301933,0.3608,97935.0,97933.0,0.18275098]
[1739409302128,0.5608,97935.0,97933.0,0.38696238]
[1739409302331,0.5608,97935.0,97923.0,0.2042322]
[1739409302524,0.3608,97927.0,97921.0,0.2042356]
[1739409302721,0.5608,97927.0,97921.0,0.00015309]
[1739409302922,0.57110508,97927.0,97925.0,0.204228]
[1739409305430,0.57610508,97927.0,97925.0,0.204228]
[1739409305727,0.58910508,97927.0,97925.0,0.205228]
[1739409305934,0.59110508,97927.0,97925.0,0.205228]
[1739409306333,0.57810508,97927.0,97925.0,0.204228]
[1739409306532,0.59110508,97927.0,97925.0,0.205228]
[1739409307335,0.04965131,97926.0,97925.0,0.205228]
[1739409307533,0.24965131,97926.0,97925.0,0.205228]
[1739409308837,0.25665131,97926.0,97925.0,0.205228]
[1739409309228,0.25665131,97926.0,97925.0,0.204228]
[1739409309423,0.26865131,97926.0,97925.0,0.205228]
[1739409312427,0.06865131,97926.0,97925.0,0.205228]
[1739409312629,0.50287751,97926.0,97925.0,0.001]
[1739409312834,0.56807811,97926.0,97916.0,0.204247]
[1739409313034,0.3608,97917.0,97916.0,0.204247]
[1739409313336,0.5708,97917.0,97912.0,0.204255]
[1739409313639,0.5708,97917.0,97906.0,0.00153196]
[1739409313836,0.3608,97908.0,97907.0,0.2042652]
[1739409314036,0.5808,97908.0,97907.0,0.2042652]
[1739409315637,0.5838,97908.0,97906.0,0.00253196]
[1739409315938,0.5838,97908.0,97891.0,0.033]
[1739409316242,0.3608,97892.0,97880.0,0.2043207]
[1739409316431,0.3608,97892.0,97873.0,0.0336]
[1739409316432,0.3608,97883.0,97881.0,0.204319]
[1739409316627,0.5808,97883.0,97881.0,0.204319]
[1739409317031,0.59125475,97883.0,97881.0,0.204319]
[1739409318034,0.59125475,97883.0,97873.0,0.204335]
[1739409318235,0.0332,97882.0,97874.0,0.2043329]
[1739409318537,0.3608,97875.0,97872.0,0.00015318]
[1739409318735,0.5608,97875.0,97872.0,0.00015318]
[1739409319141,0.5608,97875.0,97873.0,0.003]
[1739409319441,0.0694,97874.0,97873.0,0.003]
[1739409319653,0.2794,97874.0,97873.0,0.003]
[1739409320338,0.2794,97874.0,97873.0,0.004]
[1739409320743,0.2794,97874.0,97873.0,0.001]
[1739409320947,0.6402,97874.0,97873.0,0.001]
[1739409321448,0.6432,97874.0,97873.0,0.001]
[1739409322149,0.6532,97874.0,97872.0,0.20449178]
[1739409322446,0.5838,97874.0,97872.0,0.20449178]
[1739409323944,0.5788,97874.0,97872.0,0.20449178]
[1739409324245,0.5808,97874.0,97872.0,0.20449178]
[1739409328647,0.3708,97874.0,97872.0,0.20449178]
[1739409328841,0.14,97874.0,97872.0,0.20449178]
[1739409329034,0.14,97874.0,97873.0,0.0315]
[1739409330347,0.141,97874.0,97873.0,0.0315]
[1739409331245,0.133,97874.0,97873.0,0.0315]
[1739409331440,0.143,97874.0,97873.0,0.0315]
[1739409334945,0.143,97874.0,97873.0,0.04747566]
[1739409336053,0.143,97874.0,97873.0,0.04747556]
[1739409337051,0.00056001,97880.0,97879.0,0.2043243]
[1739409337250,0.04,97895.0,97891.0,0.2042992]
[1739409337553,0.14015318,97892.0,97891.0,0.2042992]
[1739409338348,0.15515318,97892.0,97891.0,0.2042992]
[1739409338542,0.15515318,97892.0,97891.0,0.22027056]
[1739409339551,0.16215318,97892.0,97891.0,0.2042992]
[1739409341653,0.16215318,97892.0,97891.0,0.2202712]
[1739409342045,0.16215318,97892.0,97891.0,0.2042992]
[1739409342360,0.16215318,97892.0,97891.0,0.2202712]
[1739409342549,0.16215318,97892.0,97891.0,0.2042992]
[1739409343448,0.16215318,97892.0,97891.0,0.22027126]
[1739409344051,0.16215318,97892.0,97891.0,0.2042992]
[1739409344654,0.16215318,97892.0,97891.0,0.22027303]
[1739409347951,0.02215318,97892.0,97891.0,0.22027303]
[1739409348753,0.02215318,97892.0,97891.0,0.2042992]
[1739409355566,0.02215318,97892.0,97881.0,0.3618]
[1739409355567,0.25215318,97892.0,97890.0,0.2043002]
[1739409355770,0.0652,97891.0,97890.0,0.2043002]
[1739409355970,0.2952,97891.0,97890.0,0.2043002]
[1739409356658,0.2952,97891.0,97890.0,0.2053002]
[1739409356872,0.33,97891.0,97890.0,0.2053002]
[1739409357455,0.352,97891.0,97890.0,0.2053002]
[1739409360865,0.7128,97891.0,97863.0,0.3938]
[1739409361068,0.2043243,97879.0,97870.0,0.2043421]
[1739409361364,0.3943243,97879.0,97870.0,0.2043421]
[1739409361867,0.19,97879.0,97863.0,0.2043576]
[1739409362065,0.204336,97874.0,97872.0,1e-08]
[1739409362266,0.0331,97873.0,97872.0,1e-08]
[1739409362458,0.2331,97873.0,97872.0,1e-08]
[1739409363666,0.2331,97873.0,97872.0,0.00100001]
[1739409364268,0.2,97873.0,97872.0,0.00100001]
[1739409364470,0.2694,97873.0,97872.0,0.03260001]
[1739409364866,0.2714,97873.0,97872.0,0.03260001]
[1739409365267,0.2714,97873.0,97872.0,0.03160001]
[1739409365567,0.2774,97873.0,97872.0,0.03260001]
[1739409365972,0.0614008,97873.0,97872.0,0.03260001]
[1739409366176,0.0614008,97873.0,97872.0,0.39340001]
[1739409366365,0.008,97873.0,97872.0,0.39340001]
[1739409366878,0.0774,97873.0,97872.0,0.40937326]
[1739409367172,0.008,97873.0,97872.0,0.40937326]
[1739409367369,0.18300789,97885.0,97884.0,0.2043137]
[1739409367671,0.22300789,97885.0,97884.0,0.5810863]
[1739409368474,0.22900789,97885.0,97884.0,0.5810863]
[1739409368975,0.24400789,97885.0,97884.0,0.58208609]
[1739409369361,0.24400789,97885.0,97884.0,0.59240953]
[1739409370264,0.08281139,97885.0,97884.0,0.59240953]
[1739409370573,0.06,97900.0,97884.0,0.41364951]
[1739409370875,0.21434476,97903.0,97891.0,0.5650992]
[1739409370876,0.07015318,97892.0,97891.0,0.5650992]
[1739409371176,0.07015318,97892.0,97891.0,0.58107159]
[1739409372071,0.07715318,97892.0,97891.0,0.58207159]
[1739409372273,0.08515318,97892.0,97891.0,0.58207159]
[1739409373165,0.08515318,97892.0,97891.0,0.58307159]
[1739409376571,0.08515318,97892.0,97891.0,0.5670992]
[1739409376766,0.08515318,97892.0,97891.0,0.2062992]
[1739409386470,0.09538063,97892.0,97891.0,0.2062992]
[1739409387677,0.14506861,97892.0,97891.0,0.2062992]
[1739409387882,0.13484116,97892.0,97891.0,0.2062992]
[1739409392668,0.13484116,97892.0,97891.0,0.22227183]
[1739409393679,0.06484116,97892.0,97891.0,0.22227183]
[1739409393883,0.06484116,97892.0,97891.0,0.22227085]
[1739409395885,0.01515318,97892.0,97891.0,0.22227085]
[1739409396882,0.01515318,97892.0,97891.0,0.2062992]
[1739409403287,0.06484044,97892.0,97891.0,0.2062992]
[1739409410585,0.01515318,97892.0,97891.0,0.2062992]
[1739409413385,0.23515318,97892.0,97884.0,0.2043128]
[1739409413587,0.3608,97885.0,97877.0,0.2043281]
[1739409413889,0.12041222,97884.0,97877.0,0.2043281]
[1739409414190,0.12041222,97884.0,97872.0,1e-08]
[1739409414191,0.52472642,97884.0,97872.0,1e-08]
[1739409414392,0.3608,97876.0,97872.0,1e-08]
[1739409414690,0.60106565,97876.0,97875.0,0.2043326]
[1739409415791,0.60306565,97876.0,97875.0,0.2043326]
[1739409416995,0.24226565,97876.0,97875.0,0.2043326]
[1739409417493,0.232,97876.0,97875.0,0.2043326]
[1739409417884,0.236,97876.0,97875.0,0.2043326]
[1739409419499,0.236,97876.0,97875.0,0.22030794]
[1739409420398,0.5968,97876.0,97872.0,1e-08]
[1739409420598,0.2043368,97873.0,97872.0,1e-08]
[1739409420894,0.2043406,97872.0,97866.0,0.01003982]
[1739409421093,0.3608,97867.0,97851.0,0.3608]
[1739409421293,0.12041222,97861.0,97841.0,0.3618]
[1739409421495,0.12041222,97852.0,97851.0,0.2043827]
[1739409421697,0.22,97852.0,97851.0,0.2043827]
[1739409423799,0.22,97852.0,97842.0,0.02215326]
[1739409424098,0.3608,97844.0,97842.0,0.00015326]
[1739409424299,0.2043994,97843.0,97842.0,0.00015326]
[1739409424601,0.23,97843.0,97842.0,0.00015326]
[1739409424990,0.23,97843.0,97842.0,0.00715326]
[1739409425196,0.23,97843.0,97842.0,0.02215326]
[1739409425499,0.23,97843.0,97842.0,0.01515326]
[1739409425700,0.23,97843.0,97842.0,0.02215326]
[1739409425701,0.231,97843.0,97842.0,0.02215326]
[1739409427002,0.232,97843.0,97842.0,0.02215326]
[1739409427204,0.231,97843.0,97842.0,0.01715326]
[1739409427597,0.23,97843.0,97842.0,0.00215326]
[1739409427903,0.23,97843.0,97842.0,0.00915326]
[1739409431403,0.23,97843.0,97842.0,0.04195326]
[1739409431706,0.23,97843.0,97842.0,0.07535326]
[1739409433309,0.0728496,97843.0,97842.0,0.07535326]
[1739409435409,0.0728496,97843.0,97842.0,0.04195326]
[1739409436512,0.0728496,97843.0,97842.0,0.00915326]
[1739409436812,0.4336496,97843.0,97842.0,0.00915326]
[1739409437010,0.4665496,97843.0,97842.0,0.00915326]
[1739409437200,0.4665496,97843.0,97842.0,0.21355476]
[1739409437520,0.1057496,97843.0,97842.0,0.21355476]
[1739409439604,0.1057496,97843.0,97842.0,0.00915326]
[1739409440410,0.1057496,97843.0,97826.0,0.3608]
[1739409440709,0.3608,97834.0,97827.0,0.2044329]
[1739409440916,0.3608,97834.0,97829.0,0.2044272]
[1739409440917,0.0307,97833.0,97829.0,0.2044272]
[1739409441102,0.2307,97833.0,97829.0,0.2044272]
[1739409441306,0.0323,97832.0,97829.0,0.2044272]
[1739409441516,0.2323,97832.0,97829.0,0.2044272]
[1739409441915,0.2323,97832.0,97830.0,0.2044259]
[1739409443310,0.2,97832.0,97830.0,0.2044259]
[1739409444015,0.2,97832.0,97830.0,0.2054259]
[1739409444218,0.2,97832.0,97830.0,0.2084259]
[1739409450721,0.3608,97834.0,97833.0,0.2044203]
[1739409452717,0.3608,97834.0,97833.0,0.2054203]
[1739409453114,0.3608,97834.0,97833.0,0.2074203]
[1739409453317,0.41051812,97834.0,97833.0,0.2074203]
[1739409460122,0.3608,97834.0,97833.0,0.2074203]
[1739409461820,0.3608,97834.0,97833.0,0.21758746]
[1739409462426,0.01025985,97839.0,97838.0,0.2044097]
[1739409462626,0.00015326,97840.0,97839.0,0.2044076]
[1739409463527,0.01056844,97840.0,97839.0,0.2044076]
[1739409463729,0.01156844,97840.0,97839.0,0.2044076]
[1739409464525,0.01356844,97840.0,97839.0,0.2044076]
[1739409466135,0.06328648,97840.0,97839.0,0.2044076]
[1739409470842,0.06328648,97840.0,97832.0,0.2044215]
[1739409471029,0.26769308,97840.0,97832.0,0.2044215]
[1739409472031,0.26569308,97840.0,97832.0,0.2044215]
[1739409472233,0.26469308,97840.0,97832.0,0.2084215]
[1739409473031,0.2044124,97837.0,97832.0,0.004]
[1739409473234,0.3608,97835.0,97832.0,0.004]
[1739409473437,0.20442,97833.0,97832.0,0.004]
[1739409473640,0.20442,97833.0,97826.0,0.3608]
[1739409474027,0.3608,97835.0,97826.0,0.3608]
[1739409474227,0.3608,97835.0,97821.0,0.00010283]
[1739409474228,0.2044324,97828.0,97821.0,0.00010283]
[1739409474432,0.0337,97827.0,97825.0,0.2044347]
[1739409474634,0.2,97827.0,97825.0,0.2044347]
[1739409475937,0.206,97827.0,97825.0,0.2044347]
[1739409478246,0.206,97827.0,97825.0,0.21464364]
[1739409478429,0.206,97827.0,97825.0,0.2044347]
[1739409478835,0.13356812,97826.0,97825.0,0.2044347]
[1739409479040,0.24356812,97826.0,97825.0,0.2044347]
[1739409479935,0.24556812,97826.0,97825.0,0.2044347]
[1739409480241,0.24956812,97826.0,97825.0,0.2044347]
[1739409482636,0.24956812,97826.0,97825.0,0.5652347]
[1739409483338,0.116,97826.0,97825.0,0.5652347]
[1739409484548,0.18389834,97836.0,97825.0,0.6608]
[1739409484739,0.00015326,97840.0,97839.0,0.2044074]
[1739409484939,0.03015326,97840.0,97839.0,0.5652074]
[1739409486046,0.03415326,97840.0,97839.0,0.5652074]
[1739409486643,0.03515326,97840.0,97839.0,0.5652074]
[1739409487945,0.03415326,97840.0,97839.0,0.57529461]
[1739409488247,0.03315326,97840.0,97839.0,0.57529461]
[1739409494949,0.00315326,97840.0,97839.0,0.57529461]
[1739409495858,0.00315326,97840.0,97839.0,0.5652074]
[1739409496660,0.2044081,97839.0,97827.0,0.0325]
[1739409496864,0.12043593,97837.0,97835.0,0.2044143]
[1739409497160,0.22,97837.0,97835.0,0.2044143]
[1739409498656,0.229,97837.0,97835.0,0.001]
[1739409498858,0.0694,97836.0,97835.0,0.001]
[1739409499056,0.2794,97836.0,97835.0,0.001]
[1739409500556,0.28943095,97836.0,97835.0,0.001]
[1739409500761,0.23303095,97836.0,97835.0,0.001]
[1739409501659,0.23303095,97836.0,97835.0,0.2054158]
[1739409505575,0.23303095,97836.0,97835.0,0.001]
[1739409507060,0.28274835,97836.0,97835.0,0.001]
[1739409509661,0.07274835,97836.0,97835.0,0.001]
[1739409513266,0.02303095,97836.0,97835.0,0.001]
[1739409520862,0.02303095,97836.0,97835.0,0.0355]
[1739409520863,0.15537614,97836.0,97835.0,0.0355]
[1739409521268,0.19537614,97836.0,97835.0,0.0355]
[1739409521469,0.19537614,97836.0,97835.0,0.0686]
[1739409522073,0.18534519,97836.0,97835.0,0.0686]
[1739409523485,0.18534519,97836.0,97835.0,0.07871427]
[1739409524574,0.10271559,97836.0,97835.0,0.07871427]
[1739409527577,0.053,97836.0,97835.0,0.07871427]
[1739409532087,0.053,97836.0,97835.0,0.28313007]
[1739409533788,0.053,97836.0,97835.0,0.2730158]
[1739409536280,0.053,97836.0,97835.0,0.28342803]
[1739409540288,0.00015326,97840.0,97835.0,0.07901223]
[1739409540482,0.02015326,97840.0,97839.0,0.5652074]
[1739409541394,0.02915326,97840.0,97839.0,0.5652074]
[1739409542087,0.02015326,97840.0,97839.0,0.5652074]
[1739409542389,0.03715326,97840.0,97839.0,0.5662074]
[1739409545595,0.08686359,97840.0,97839.0,0.5662074]
[1739409547993,0.41867356,97877.0,97851.0,0.2043824]
[1739409548179,8e-08,97856.0,97855.0,0.204374]
[1739409548383,0.0323,97866.0,97865.0,0.2043531]
[1739409548580,0.2623,97866.0,97865.0,0.5651531]
[1739409548791,0.23,97866.0,97865.0,0.57548614]
[1739409550099,0.231,97866.0,97865.0,0.58248614]
[1739409550791,0.231,97866.0,97865.0,0.59748614]
[1739409554188,0.231,97866.0,97865.0,0.5871531]
[1739409556299,0.231,97866.0,97865.0,0.2263531]
[1739409556799,0.231,97866.0,97865.0,0.022]
[1739409557101,0.30036,97866.0,97865.0,0.022]
[1739409557606,0.30036,97866.0,97865.0,0.2263531]
[1739409557789,0.231,97866.0,97865.0,0.2263531]
[1739409558503,0.2043683,97858.0,97856.0,0.00015326]
[1739409558695,0.0671,97857.0,97856.0,0.00015326]
[1739409558895,0.2971,97857.0,97856.0,0.00015326]
[1739409559493,0.2971,97857.0,97848.0,0.1830683]
[1739409559699,0.2971,97857.0,97856.0,0.007]
[1739409559700,0.5014698,97857.0,97856.0,0.007]
[1739409560193,0.204375,97855.0,97851.0,0.2043821]
[1739409560398,0.404375,97855.0,97852.0,0.2043791]
[1739409561396,0.2,97855.0,97845.0,0.204394]
[1739409561598,0.3608,97849.0,97848.0,0.007]
[1739409561803,0.67016,97849.0,97848.0,0.2113886]
[1739409562004,0.6008,97849.0,97848.0,0.2113886]
[1739409562306,0.6008,97849.0,97848.0,0.2043886]
[1739409562891,0.6078,97849.0,97848.0,0.2043886]
[1739409563303,0.247,97849.0,97848.0,0.2043886]
[1739409564102,0.257,97849.0,97848.0,0.2053886]
[1739409568301,0.6178,97849.0,97848.0,0.2053886]
[1739409570910,0.66751266,97849.0,97848.0,0.2053886]
[1739409574913,0.6178,97849.0,97848.0,0.001]
[1739409575113,0.68716,97849.0,97848.0,0.001]
[1739409575913,0.8915465,97849.0,97848.0,0.001]
[1739409576217,0.8221865,97849.0,97848.0,0.001]
[1739409579316,0.5821865,97849.0,97848.0,0.001]
[1739409582728,0.2043991,97843.0,97842.0,0.00010283]
[1739409582916,0.2043991,97843.0,97832.0,0.0318]
[1739409582917,0.2044138,97836.0,97832.0,0.0318]
[1739409583116,0.4244138,97836.0,97832.0,0.2362218]
[1739409584219,0.23028223,97836.0,97832.0,0.0318]
[1739409584426,0.23028223,97836.0,97834.0,0.2044173]
[1739409584732,0.23528223,97836.0,97834.0,0.2044173]
[1739409585424,0.23828223,97836.0,97835.0,0.2044158]
[1739409586420,0.23328223,97836.0,97835.0,0.2044158]
[1739409586626,0.24028223,97836.0,97835.0,0.2044158]
[1739409587220,0.23328223,97836.0,97835.0,0.2054158]
[1739409587428,0.24128223,97836.0,97835.0,0.2054158]
[1739409587924,0.24228223,97836.0,97835.0,0.2054158]
[1739409590520,0.232,97836.0,97835.0,0.2054158]
[1739409592832,0.012,97836.0,97835.0,0.2054158]
[1739409603032,0.02,97836.0,97835.0,0.001]
[1739409603330,0.02,97836.0,97835.0,0.2054158]
[1739409603331,0.07936,97836.0,97835.0,0.2054158]
[1739409603534,0.01,97836.0,97835.0,0.2054158]
[1739409604037,1e-07,97836.0,97835.0,0.2054158]
[1739409606439,6e-08,97844.0,97843.0,0.2043991]
[1739409606639,0.04000006,97844.0,97843.0,0.5651991]
[1739409608555,0.04300006,97844.0,97843.0,0.5661991]
[1739409609038,0.04300006,97844.0,97843.0,0.57660854]
[1739409611749,0.04300006,97844.0,97843.0,0.57640025]
[1739409611939,0.11236006,97844.0,97843.0,0.57640025]
[1739409615149,0.11236006,97844.0,97843.0,0.5661991]
[1739409615445,0.04300006,97844.0,97843.0,0.57657814]
[1739409616243,0.04300006,97844.0,97843.0,0.5661991]
[1739409616439,0.00300006,97844.0,97843.0,0.5661991]
[1739409619949,0.00300006,97844.0,97843.0,0.2053991]
[1739409620355,0.21300006,97844.0,97843.0,0.001]
[1739409620649,0.21300006,97844.0,97834.0,0.0001532]
[1739409620650,0.28232006,97844.0,97834.0,0.0001532]
[1739409620849,0.2044153,97836.0,97834.0,0.0001532]
[1739409621040,0.0312,97835.0,97834.0,0.0001532]
[1739409621236,0.2712,97835.0,97834.0,0.0001532]
[1739409622254,0.28134644,97835.0,97834.0,0.0001532]
[1739409622444,0.28534644,97835.0,97834.0,0.0001532]
[1739409623153,0.28834644,97835.0,97834.0,0.0001532]
[1739409628358,0.49276224,97835.0,97834.0,0.0001532]
[1739409634861,0.28834644,97835.0,97834.0,0.0001532]
[1739409637262,0.25714644,97835.0,97834.0,0.0001532]
[1739409637857,0.247,97835.0,97834.0,0.0001532]
[1739409638668,0.247,97835.0,97834.0,0.3609532]
[1739409642760,0.247,97835.0,97834.0,0.54467664]
[1739409648675,0.247,97835.0,97834.0,0.3609532]
[1739409656375,0.1281433,97835.0,97834.0,0.3609532]
[1739409656574,6e-08,97844.0,97843.0,0.2043991]
[1739409656783,0.05000006,97844.0,97843.0,0.5651991]
[1739409658276,0.05200006,97844.0,97843.0,0.57622751]
[1739409659282,0.05200006,97844.0,97843.0,0.5661991]
[1739409670786,0.10170695,97844.0,97843.0,0.5661991]
[1739409673488,5e-08,97844.0,97843.0,0.5661991]
[1739409673989,0.07904725,97870.0,97862.0,0.2043594]
[1739409674187,0.21153323,97864.0,97862.0,0.2043594]
[1739409675289,0.21153323,97864.0,97862.0,0.2263594]
[1739409682101,0.21,97864.0,97862.0,0.2263594]
[1739409683799,0.0393806,97864.0,97862.0,0.2263594]
[1739409684100,0.00015326,97873.0,97872.0,0.2043385]
[1739409684298,0.04015326,97873.0,97872.0,0.5651385]
[1739409685501,0.04015326,97873.0,97872.0,0.5721385]
[1739409685895,0.00015326,97873.0,97872.0,0.5721385]
[1739409686797,6e-08,97873.0,97872.0,0.58255554]
[1739409686998,6e-08,97873.0,97872.0,0.59055554]
[1739409687306,6e-08,97873.0,97872.0,0.59755554]
[1739409688500,6e-08,97873.0,97872.0,0.58255554]
[1739409688700,6e-08,97873.0,97872.0,0.59755554]
[1739409696209,6e-08,97873.0,97872.0,0.59055554]
[1739409696402,6e-08,97873.0,97872.0,0.59755554]
[1739409696804,6e-08,97873.0,97872.0,0.58255554]
[1739409697005,6e-08,97873.0,97872.0,0.59755554]
[1739409697606,6e-08,97873.0,97872.0,0.62630527]
[1739409698130,6e-08,97873.0,97872.0,0.64227698]
[1739409698619,6e-08,97873.0,97872.0,0.62949957]
[1739409699314,6e-08,97873.0,97872.0,0.61352786]
[1739409700510,6e-08,97873.0,97872.0,0.59755554]
[1739409700712,6e-08,97873.0,97872.0,0.61352771]
[1739409701719,6e-08,97873.0,97872.0,0.63908318]
[1739409704417,6e-08,97873.0,97872.0,0.65186093]
[1739409704619,6e-08,97873.0,97872.0,0.62630546]
[1739409705023,6e-08,97873.0,97872.0,0.64227765]
[1739409705622,6e-08,97873.0,97872.0,0.63527765]
[1739409706622,6e-08,97873.0,97872.0,0.62027765]
[1739409706814,6e-08,97873.0,97872.0,0.62127765]
[1739409707211,6e-08,97873.0,97872.0,0.62127761]
[1739409707723,6e-08,97873.0,97872.0,0.98207761]
[1739409709423,6e-08,97873.0,97872.0,0.9820772]
[1739409711421,6e-08,97873.0,97872.0,1.00763154]
[1739409711922,0.00153275,97888.0,97872.0,0.80329247]
[1739409712230,0.00153275,97888.0,97887.0,0.5651072]
[1739409712424,0.0313,97895.0,97894.0,0.2042926]
[1739409712627,0.0713,97895.0,97894.0,0.22026296]
[1739409712829,0.0713,97895.0,97894.0,0.24581425]
[1739409714129,0.0713,97895.0,97894.0,0.23526296]
[1739409714324,0.0713,97895.0,97894.0,0.260814]
[1739409714829,0.00015326,97904.0,97894.0,0.0565214]
[1739409715026,0.08015326,97904.0,97903.0,0.5650738]
[1739409715330,0.08015326,97904.0,97903.0,0.58104416]
[1739409716122,0.08015326,97904.0,97903.0,0.58804278]
[1739409716322,0.08015326,97904.0,97903.0,0.95903383]
[1739409716526,6e-08,97904.0,97903.0,0.95903383]
[1739409716727,6e-08,97904.0,97903.0,0.98458259]
[1739409717032,0.1832153,97906.0,97905.0,0.2042697]
[1739409717233,0.1832153,97906.0,97905.0,0.22023868]
[1739409717423,0.0308,97909.0,97905.0,0.01596898]
[1739409717624,0.0608,97909.0,97908.0,0.2042634]
[1739409717828,0.0608,97909.0,97908.0,0.22023238]
[1739409718825,0.0608,97909.0,97908.0,0.22723238]
[1739409719733,0.0608,97909.0,97908.0,0.2262634]
[1739409720934,0.0608,97909.0,97908.0,0.24223121]
[1739409721730,0.0608,97909.0,97908.0,0.2262634]
[1739409726441,0.0308,97909.0,97908.0,0.2262634]
[1739409727844,0.0308,97909.0,97908.0,0.24223124]
[1739409728232,0.0308,97909.0,97908.0,0.24223125]
[1739409729333,0.0308,97909.0,97908.0,0.60303125]
[1739409734440,0.0308,97909.0,97908.0,0.60303168]
[1739409734958,0.0308,97909.0,97908.0,0.60303167]
[1739409736430,0.0308,97909.0,97908.0,0.60303202]
[1739409737331,0.06515326,97915.0,97914.0,0.2042509]
[1739409737527,0.06515326,97915.0,97914.0,0.22021914]
[1739409738138,0.03,97929.0,97919.0,0.05106]
[1739409738339,0.11,97929.0,97928.0,0.3608]
[1739409738533,0.17924,97929.0,97928.0,0.3608]
[1739409738935,0.17924,97929.0,97928.0,0.37676505]
[1739409739144,0.08,97929.0,97928.0,0.37676505]
[1739409739529,0.08,97929.0,97928.0,0.58798675]
[1739409739734,0.08,97929.0,97928.0,0.59812412]
[1739409740135,0.08,97929.0,97928.0,0.61312412]
[1739409742844,0.08,97929.0,97928.0,0.59715907]
[1739409751352,0.00015318,97938.0,97937.0,0.2042029]
[1739409751552,0.00015318,97938.0,97937.0,0.5650029]
[1739409752455,0.00015318,97938.0,97937.0,0.5720029]
[1739409752856,0.00015318,97938.0,97937.0,0.5870029]
[1739409755051,0.00015318,97938.0,97937.0,0.2262029]
[1739409774567,0.00015318,97938.0,97937.0,0.40932359]
[1739409775764,0.20435398,97938.0,97937.0,0.40932359]
[1739409776367,0.00015318,97938.0,97937.0,0.40932359]
[1739409777675,0.18372955,97938.0,97937.0,0.2262029]
[1739409780070,0.01046274,97938.0,97937.0,0.2262029]
[1739409781283,0.21466354,97938.0,97937.0,0.2262029]
[1739409781685,0.21466354,97938.0,97937.0,0.022]
[1739409782088,0.44466354,97938.0,97937.0,0.022]
[1739409782787,0.24046274,97938.0,97928.0,0.00015318]
[1739409782985,0.2042175,97930.0,97929.0,0.204219]
[1739409783184,0.4242175,97930.0,97929.0,0.204219]
[1739409783386,0.4242175,97930.0,97928.0,0.00015318]
[1739409784188,0.4242175,97930.0,97929.0,0.007]
[1739409784598,0.4252175,97930.0,97929.0,0.022]
[1739409786292,0.4262175,97930.0,97929.0,0.015]